fUSD/lending_fUSD_20260511
["ID","MTS","AMOUNT","RATE_DAILY","PERIOD"]
[422020552,1778477446000,-506.63075633,0.00015521,2]
[422020558,1778477446000,-2405.55389864,0.00015682,2]
[422020561,1778477446000,-502.0,0.00015781,2]
[422020560,1778477446000,-2000.0,0.00015771,2]
[422020562,1778477446000,-860.1,0.00015809,2]
[422020563,1778477446000,-40912.52041905,0.00015875,2]
[422020567,1778477446000,-500.0,0.0001607,2]
[422020566,1778477446000,-280.26326721,0.00016,2]
[422020559,1778477446000,-26249.24944412,0.00015735,2]
[422020564,1778477446000,-505.76063347,0.00015916,2]
[422020568,1778477446000,-160.0,0.00016113,2]
[422020565,1778477446000,-300.0,0.00016,2]
[422020570,1778477446000,-255.02913676,0.00016137,21]
[422020571,1778477446000,-350.0,0.00016164,2]
[422020597,1778477446000,-530.00355044,0.00016438,2]
[422020600,1778477446000,-1931.336543,0.00016438,2]
[422020604,1778477446000,-1931.336543,0.00016438,2]
[422020633,1778477446000,-162.70693995,0.00016438,2]
[422020632,1778477446000,-164.59055698,0.00016438,2]
[422020630,1778477446000,-500.0,0.00016438,2]
[422020635,1778477446000,-636.671876,0.00016438,2]
[422020634,1778477446000,-636.671876,0.00016438,2]
[422020645,1778477446000,-636.671876,0.00016438,2]
[422020636,1778477446000,-636.671876,0.00016438,2]
[422020644,1778477446000,-636.671876,0.00016438,2]
[422020639,1778477446000,-636.671876,0.00016438,2]
[422020637,1778477446000,-636.671876,0.00016438,2]
[422020640,1778477446000,-636.671876,0.00016438,2]
[422020629,1778477446000,-501.12384087,0.00016438,2]
[422020641,1778477446000,-636.671876,0.00016438,2]
[422020643,1778477446000,-636.671876,0.00016438,2]
[422020647,1778477446000,-636.671876,0.00016438,2]
[422020654,1778477446000,-1353.51,0.00016474,2]
[422020646,1778477446000,-636.671876,0.00016438,2]
[422020648,1778477446000,-636.671876,0.00016438,2]
[422020655,1778477446000,-204.35,0.00016712,2]
[422020649,1778477446000,-736.0,0.00016455,2]
[422020650,1778477446000,-500.0,0.0001647,2]
[422020653,1778477446000,-152.627046,0.00016473,2]
[422020652,1778477446000,-151.0,0.00016473,2]
[422020651,1778477446000,-151.0,0.00016473,2]
[422020638,1778477446000,-636.671876,0.00016438,2]
[422020631,1778477446000,-500.0,0.00016438,2]
[422020642,1778477446000,-636.671876,0.00016438,2]
[422020625,1778477446000,-500.0,0.00016438,2]
[422020628,1778477446000,-500.0,0.00016438,2]
[422020602,1778477446000,-1931.336543,0.00016438,2]
[422020607,1778477446000,-1931.336543,0.00016438,2]
[422020606,1778477446000,-1931.336543,0.00016438,2]
[422020603,1778477446000,-1931.336543,0.00016438,2]
[422020605,1778477446000,-1931.336543,0.00016438,2]
[422020608,1778477446000,-1931.336543,0.00016438,2]
[422020609,1778477446000,-1931.336543,0.00016438,2]
[422020601,1778477446000,-1931.336543,0.00016438,2]
[422020610,1778477446000,-1931.336543,0.00016438,2]
[422020614,1778477446000,-1931.336543,0.00016438,2]
[422020612,1778477446000,-1931.336543,0.00016438,2]
[422020613,1778477446000,-1931.336543,0.00016438,2]
[422020611,1778477446000,-1931.336543,0.00016438,2]
[422020618,1778477446000,-229.78,0.00016438,2]
[422020627,1778477446000,-503.79279791,0.00016438,2]
[422020626,1778477446000,-500.0,0.00016438,2]
[422020624,1778477446000,-504.49720408,0.00016438,2]
[422020621,1778477446000,-151.0,0.00016438,2]
[422020615,1778477446000,-1931.336543,0.00016438,2]
[422020623,1778477446000,-151.0,0.00016438,2]
[422020622,1778477446000,-151.0,0.00016438,2]
[422020620,1778477446000,-500.0,0.00016438,2]
[422020617,1778477446000,-1931.336551,0.00016438,2]
[422020616,1778477446000,-1931.336543,0.00016438,2]
[422020619,1778477446000,-504.93641146,0.00016438,2]
[422020729,1778477447000,-789.16,0.00017313,2]
[422020718,1778477447000,-152.0,0.00017283,2]
[422020716,1778477447000,-152.0,0.00017283,2]
[422020714,1778477447000,-152.0,0.00017283,2]
[422020712,1778477447000,-152.0,0.00017283,2]
[422020708,1778477447000,-152.0,0.00017283,2]
[422020699,1778477447000,-152.0,0.00017283,2]
[422020695,1778477447000,-500.0,0.0001727,2]
[422020704,1778477447000,-152.0,0.00017283,2]
[422020698,1778477447000,-152.0,0.00017283,2]
[422020720,1778477447000,-151.0,0.00017283,2]
[422020710,1778477447000,-152.0,0.00017283,2]
[422020722,1778477447000,-156.587,0.00017283,2]
[422020756,1778477447000,-40912.52041905,0.00017597,2]
[422020731,1778477447000,-2682.57183977,0.00017326,2]
[422020725,1778477447000,-151.0,0.00017283,2]
[422020726,1778477447000,-197.7747378,0.00017283,2]
[422020735,1778477447000,-26249.24944412,0.00017407,2]
[422020737,1778477447000,-1054.46,0.000175,2]
[422020739,1778477447000,-170.18,0.00017512,2]
[422020741,1778477447000,-1500.0,0.00017534,2]
[422020743,1778477447000,-1500.0,0.00017534,2]
[422020745,1778477447000,-1140.15671227,0.00017541,2]
[422020747,1778477447000,-1000.0,0.00017541,2]
[422020758,1778477447000,-249.27,0.000178,2]
[422020751,1778477447000,-158.12148616,0.00017575,2]
[422020702,1778477447000,-152.0,0.00017283,2]
[422020733,1778477447000,-2000.0,0.00017348,2]
[422020706,1778477447000,-152.0,0.00017283,2]
[422020667,1778477447000,-514.11917227,0.00016986,2]
[422020692,1778477447000,-500.0,0.0001717,2]
[422020657,1778477447000,-40912.52041905,0.00016736,2]
[422020656,1778477447000,-450.0,0.00016712,2]
[422020753,1778477447000,-789.16,0.00017587,2]
[422020659,1778477447000,-2586.85809042,0.00016778,2]
[422020669,1778477447000,-510.18170722,0.00016986,2]
[422020668,1778477447000,-746.23372072,0.00016986,2]
[422020661,1778477447000,-156.56359846,0.00016854,2]
[422020664,1778477447000,-500.0,0.00016986,2]
[422020670,1778477447000,-505.08350272,0.00016986,2]
[422020660,1778477447000,-26249.24944412,0.0001685,2]
[422020662,1778477447000,-176.28916873,0.00016986,2]
[422020663,1778477447000,-1019.08664583,0.00016986,2]
[422020658,1778477447000,-789.16,0.00016765,2]
[422020666,1778477447000,-1000.0,0.00016986,2]
[422020665,1778477447000,-507.42286766,0.00016986,2]
[422020673,1778477447000,-196.26142592,0.00016993,2]
[422020671,1778477447000,-1003.63525931,0.00016986,2]
[422020672,1778477447000,-1000.0,0.00016986,2]
[422020674,1778477447000,-500.0,0.00016993,2]
[422020675,1778477447000,-500.6361945,0.00016993,2]
[422020677,1778477447000,-500.0,0.00016993,2]
[422020679,1778477447000,-500.0,0.00016993,2]
[422020683,1778477447000,-440.06362982,0.00017021,21]
[422020688,1778477447000,-3292.0,0.00017097,2]
[422020685,1778477447000,-789.16,0.00017039,2]
[422020681,1778477447000,-566.24901909,0.00016993,2]
[422020689,1778477447000,-155.0,0.00017102,2]
[422020693,1778477447000,-370.40982236,0.0001726,2]
[422020749,1778477447000,-1003.82358669,0.00017541,2]
[422020760,1778477447000,-789.16,0.00017861,2]
[422020881,1778477447000,-500.0,0.00019178,2]
[422020832,1778477447000,-339.42572997,0.00018894,2]
[422020834,1778477447000,-1010.0,0.000189,2]
[422020837,1778477447000,-2991.49051684,0.0001897,2]
[422020836,1778477447000,-2000.0,0.00018925,2]
[422020839,1778477447000,-26249.24944412,0.00019078,2]
[422020841,1778477447000,-3000.0,0.00019178,2]
[422020843,1778477447000,-500.0,0.00019178,2]
[422020845,1778477447000,-500.0,0.00019178,2]
[422020854,1778477447000,-500.0,0.00019178,2]
[422020849,1778477447000,-500.0,0.00019178,2]
[422020847,1778477447000,-500.0,0.00019178,2]
[422020853,1778477447000,-500.0,0.00019178,2]
[422020858,1778477447000,-500.0,0.00019178,2]
[422020822,1778477447000,-156.587,0.00018652,2]
[422020851,1778477447000,-500.0,0.00019178,2]
[422020860,1778477447000,-500.0,0.00019178,2]
[422020864,1778477447000,-500.0,0.00019178,2]
[422020866,1778477447000,-500.0,0.00019178,2]
[422020880,1778477447000,-500.0,0.00019178,2]
[422020879,1778477447000,-500.0,0.00019178,2]
[422020868,1778477447000,-500.0,0.00019178,2]
[422020870,1778477447000,-500.0,0.00019178,2]
[422020876,1778477447000,-500.0,0.00019178,2]
[422020872,1778477447000,-500.0,0.00019178,2]
[422020762,1778477447000,-693.0,0.00017868,2]
[422020877,1778477447000,-500.0,0.00019178,2]
[422020874,1778477447000,-500.0,0.00019178,2]
[422020878,1778477447000,-500.0,0.00019178,2]
[422020862,1778477447000,-500.0,0.00019178,2]
[422020818,1778477447000,-2500.0,0.0001863,2]
[422020856,1778477447000,-500.0,0.00019178,2]
[422020827,1778477447000,-4609.0,0.00018807,2]
[422020764,1778477447000,-2781.82699784,0.00017874,2]
[422020829,1778477447000,-500.0,0.00018894,2]
[422020784,1778477447000,-335.98,0.00018135,2]
[422020780,1778477447000,-2000.0,0.00018082,2]
[422020782,1778477447000,-1500.0,0.00018089,2]
[422020766,1778477447000,-590.11191507,0.0001789,2]
[422020770,1778477447000,-151.0,0.000179,2]
[422020776,1778477447000,-843.83715375,0.00018,2]
[422020772,1778477447000,-151.0,0.000179,2]
[422020769,1778477447000,-112711.80178972,0.000179,2]
[422020774,1778477447000,-26249.24944412,0.00017964,2]
[422020789,1778477447000,-150.0,0.00018224,2]
[422020791,1778477447000,-922.16,0.00018256,2]
[422020786,1778477447000,-843.83715375,0.000182,2]
[422020778,1778477447000,-866.71633271,0.00018082,2]
[422020805,1778477447000,-1003.36226844,0.00018428,2]
[422020807,1778477447000,-1476.14135509,0.00018445,2]
[422020825,1778477447000,-843.83715375,0.000187,2]
[422020816,1778477447000,-150.0,0.00018618,2]
[422020803,1778477447000,-251.09165877,0.00018428,2]
[422020814,1778477447000,-26249.24944412,0.00018521,2]
[422020795,1778477447000,-89470.23,0.00018356,2]
[422020820,1778477447000,-1022.35959727,0.00018637,2]
[422020797,1778477447000,-843.83715375,0.000184,2]
[422020812,1778477447000,-843.83715375,0.000185,2]
[422020801,1778477447000,-2884.75459676,0.00018422,2]
[422020799,1778477447000,-775.9,0.0001841,2]
[422020810,1778477447000,-40912.52041905,0.00018457,2]
[422020793,1778477447000,-613.79,0.00018331,2]
[422020918,1778477448000,-151.0,0.00019178,2]
[422020919,1778477448000,-183.952398,0.00019178,2]
[422020915,1778477448000,-151.0,0.00019178,2]
[422020914,1778477448000,-151.0,0.00019178,2]
[422020923,1778477448000,-195.234156,0.00019178,2]
[422020912,1778477448000,-151.0,0.00019178,2]
[422020921,1778477448000,-195.234156,0.00019178,2]
[422020922,1778477448000,-195.234156,0.00019178,2]
[422020920,1778477448000,-195.234156,0.00019178,2]
[422020916,1778477448000,-151.0,0.00019178,2]
[422020910,1778477448000,-151.0,0.00019178,2]
[422020913,1778477448000,-151.0,0.00019178,2]
[422020928,1778477448000,-195.234156,0.00019178,2]
[422020924,1778477448000,-195.234156,0.00019178,2]
[422020926,1778477448000,-195.234156,0.00019178,2]
[422020925,1778477448000,-195.234156,0.00019178,2]
[422020927,1778477448000,-195.234156,0.00019178,2]
[422020935,1778477448000,-195.234156,0.00019178,2]
[422020934,1778477448000,-195.234156,0.00019178,2]
[422020930,1778477448000,-195.234156,0.00019178,2]
[422020932,1778477448000,-195.234156,0.00019178,2]
[422020931,1778477448000,-195.234156,0.00019178,2]
[422020929,1778477448000,-195.234156,0.00019178,2]
[422020933,1778477448000,-195.234156,0.00019178,2]
[422020911,1778477448000,-151.0,0.00019178,2]
[422020917,1778477448000,-151.0,0.00019178,2]
[422020908,1778477448000,-151.0,0.00019178,2]
[422020937,1778477448000,-195.234156,0.00019178,2]
[422020903,1778477448000,-500.0,0.00019178,2]
[422020882,1778477448000,-500.0,0.00019178,2]
[422020885,1778477448000,-500.0,0.00019178,2]
[422020884,1778477448000,-500.0,0.00019178,2]
[422020883,1778477448000,-500.0,0.00019178,2]
[422020897,1778477448000,-500.0,0.00019178,2]
[422020887,1778477448000,-500.0,0.00019178,2]
[422020886,1778477448000,-500.0,0.00019178,2]
[422020896,1778477448000,-500.0,0.00019178,2]
[422020889,1778477448000,-500.0,0.00019178,2]
[422020888,1778477448000,-500.0,0.00019178,2]
[422020890,1778477448000,-500.0,0.00019178,2]
[422020891,1778477448000,-500.0,0.00019178,2]
[422020895,1778477448000,-500.0,0.00019178,2]
[422020894,1778477448000,-500.0,0.00019178,2]
[422020893,1778477448000,-500.0,0.00019178,2]
[422020892,1778477448000,-500.0,0.00019178,2]
[422020899,1778477448000,-500.0,0.00019178,2]
[422020909,1778477448000,-151.0,0.00019178,2]
[422020898,1778477448000,-500.0,0.00019178,2]
[422020900,1778477448000,-500.0,0.00019178,2]
[422020904,1778477448000,-500.0,0.00019178,2]
[422020907,1778477448000,-151.0,0.00019178,2]
[422020901,1778477448000,-500.0,0.00019178,2]
[422020905,1778477448000,-186.90749369,0.00019178,2]
[422020902,1778477448000,-500.0,0.00019178,2]
[422020906,1778477448000,-151.0,0.00019178,2]
[422020936,1778477448000,-195.234156,0.00019178,2]
[422020995,1778477448000,-2000.0,0.0002001,2]
[422020941,1778477448000,-468.090996,0.00019178,2]
[422020968,1778477448000,-2000.0,0.00019567,2]
[422020975,1778477448000,-150.0,0.00019681,2]
[422020972,1778477448000,-2000.0,0.00019567,2]
[422020976,1778477448000,-330.52,0.00019698,2]
[422020974,1778477448000,-190.0,0.00019567,2]
[422020970,1778477448000,-2000.0,0.00019567,2]
[422020973,1778477448000,-2000.0,0.00019567,2]
[422020971,1778477448000,-2000.0,0.00019567,2]
[422020978,1778477448000,-1353.51,0.00019968,2]
[422020981,1778477448000,-150.0,0.0002,2]
[422020982,1778477448000,-167.0,0.0002,2]
[422020980,1778477448000,-1500.0,0.0001999,2]
[422020986,1778477448000,-3143.0,0.0002,2]
[422020987,1778477448000,-267.0,0.0002,2]
[422020985,1778477448000,-158.0,0.0002,2]
[422020989,1778477448000,-214.82098671,0.00020006,2]
[422020983,1778477448000,-497.0,0.0002,2]
[422020984,1778477448000,-854.0,0.0002,2]
[422020988,1778477448000,-829.0,0.0002,2]
[422020991,1778477448000,-2000.0,0.0002001,2]
[422020994,1778477448000,-2000.0,0.0002001,2]
[422020992,1778477448000,-2000.0,0.0002001,2]
[422020990,1778477448000,-2000.0,0.0002001,2]
[422020993,1778477448000,-2000.0,0.0002001,2]
[422020938,1778477448000,-195.234156,0.00019178,2]
[422020966,1778477448000,-2000.0,0.00019567,2]
[422020969,1778477448000,-2000.0,0.00019567,2]
[422020979,1778477448000,-933.12,0.00019968,2]
[422020977,1778477448000,-158.12148616,0.0001977,2]
[422020939,1778477448000,-195.234155,0.00019178,2]
[422020967,1778477448000,-2000.0,0.00019567,2]
[422020942,1778477448000,-468.090996,0.00019178,2]
[422020940,1778477448000,-468.090996,0.00019178,2]
[422020943,1778477448000,-468.090996,0.00019178,2]
[422020944,1778477448000,-468.090996,0.00019178,2]
[422020945,1778477448000,-468.090996,0.00019178,2]
[422020948,1778477448000,-468.090996,0.00019178,2]
[422020947,1778477448000,-468.090996,0.00019178,2]
[422020952,1778477448000,-468.090996,0.00019178,2]
[422020954,1778477448000,-468.090996,0.00019178,2]
[422020949,1778477448000,-468.090996,0.00019178,2]
[422020950,1778477448000,-468.090996,0.00019178,2]
[422020946,1778477448000,-468.090996,0.00019178,2]
[422020951,1778477448000,-468.090996,0.00019178,2]
[422020965,1778477448000,-2000.0,0.00019567,2]
[422020964,1778477448000,-2000.0,0.00019567,2]
[422020963,1778477448000,-1000.0,0.00019442,2]
[422020961,1778477448000,-40912.52041905,0.00019318,2]
[422020960,1778477448000,-912.81096353,0.00019178,2]
[422020956,1778477448000,-468.090996,0.00019178,2]
[422020962,1778477448000,-159.63,0.0001944,2]
[422020959,1778477448000,-468.090991,0.00019178,2]
[422020955,1778477448000,-468.090996,0.00019178,2]
[422020958,1778477448000,-468.090996,0.00019178,2]
[422020953,1778477448000,-468.090996,0.00019178,2]
[422020957,1778477448000,-468.090996,0.00019178,2]
[422021045,1778477449000,-40912.52041905,0.000219,2]
[422021040,1778477449000,-2000.0,0.00021526,2]
[422021038,1778477449000,-2000.0,0.00021526,2]
[422021039,1778477449000,-2000.0,0.00021526,2]
[422021066,1778477449000,-2000.0,0.00022298,2]
[422021036,1778477449000,-2000.0,0.00021526,2]
[422021031,1778477449000,-328.0,0.00021208,2]
[422021037,1778477449000,-2000.0,0.00021526,2]
[422021032,1778477449000,-6457.95,0.0002137,2]
[422021030,1778477449000,-200.0,0.00021208,2]
[422021034,1778477449000,-2000.0,0.00021526,2]
[422021028,1778477449000,-200.0,0.00021208,2]
[422021035,1778477449000,-2000.0,0.00021526,2]
[422021042,1778477449000,-2000.0,0.00021526,2]
[422021065,1778477449000,-251.94782871,0.00022024,2]
[422021049,1778477449000,-151.0,0.00021918,2]
[422021050,1778477449000,-151.0,0.00021918,2]
[422021048,1778477449000,-151.0,0.00021918,2]
[422021043,1778477449000,-152.0,0.00021686,7]
[422021051,1778477449000,-151.0,0.00021918,2]
[422021052,1778477449000,-151.0,0.00021918,2]
[422021047,1778477449000,-1003.52,0.00021918,2]
[422021041,1778477449000,-2000.0,0.00021526,2]
[422021046,1778477449000,-3072.28,0.00021918,2]
[422021053,1778477449000,-151.0,0.00021918,2]
[422021055,1778477449000,-5000.0,0.00021918,2]
[422021067,1778477449000,-2000.0,0.00022298,2]
[422021033,1778477449000,-2000.0,0.00021526,2]
[422021044,1778477449000,-8250.45173555,0.000218,2]
[422021029,1778477449000,-200.0,0.00021208,2]
[422020997,1778477449000,-298.52681538,0.00020021,2]
[422021022,1778477449000,-158.0,0.00021,2]
[422021001,1778477449000,-2000.0,0.00020335,2]
[422020996,1778477449000,-2000.0,0.0002001,2]
[422020998,1778477449000,-208.15897961,0.00020047,2]
[422021000,1778477449000,-2000.0,0.00020335,2]
[422020999,1778477449000,-40912.52041905,0.00020179,2]
[422021003,1778477449000,-2000.0,0.00020335,2]
[422021013,1778477449000,-164.658,0.00020375,2]
[422021002,1778477449000,-2000.0,0.00020335,2]
[422021007,1778477449000,-2000.0,0.00020335,2]
[422021005,1778477449000,-2000.0,0.00020335,2]
[422021004,1778477449000,-2000.0,0.00020335,2]
[422021006,1778477449000,-2000.0,0.00020335,2]
[422021009,1778477449000,-2000.0,0.00020335,2]
[422021010,1778477449000,-1269.0,0.00020375,2]
[422021008,1778477449000,-2000.0,0.00020335,2]
[422021011,1778477449000,-281.15,0.00020375,2]
[422021012,1778477449000,-1235.185,0.00020375,2]
[422021015,1778477449000,-1388.29,0.00020375,2]
[422021025,1778477449000,-255.18880509,0.00021052,21]
[422021026,1778477449000,-308.0,0.000211,2]
[422021014,1778477449000,-627.397,0.00020375,2]
[422021018,1778477449000,-1019.00559523,0.00020538,2]
[422021017,1778477449000,-1054.46,0.000204,2]
[422021016,1778477449000,-775.9,0.00020381,2]
[422021024,1778477449000,-40912.52041905,0.00021039,2]
[422021021,1778477449000,-497.0,0.00021,2]
[422021019,1778477449000,-6453.0,0.00020688,2]
[422021020,1778477449000,-167.0,0.00021,2]
[422021023,1778477449000,-267.0,0.00021,2]
[422021027,1778477449000,-200.0,0.00021208,2]
[422021063,1778477449000,-158.0,0.00022,2]
[422021082,1778477449000,-2000.0,0.00022298,2]
[422021062,1778477449000,-497.0,0.00022,2]
[422021097,1778477449000,-150.0,0.00023375,2]
[422021092,1778477449000,-497.0,0.00023,2]
[422021105,1778477449000,-550.0,0.0002376,2]
[422021095,1778477449000,-166.18469155,0.0002314,2]
[422021103,1778477449000,-550.0,0.0002376,2]
[422021094,1778477449000,-267.0,0.00023,2]
[422021104,1778477449000,-550.0,0.0002376,2]
[422021098,1778477449000,-1223.0,0.00023375,2]
[422021096,1778477449000,-1269.0,0.00023375,2]
[422021102,1778477449000,-550.0,0.0002376,2]
[422021101,1778477449000,-550.0,0.0002376,2]
[422021106,1778477449000,-550.0,0.0002376,2]
[422021108,1778477449000,-550.0,0.0002376,2]
[422021112,1778477449000,-497.0,0.00024,2]
[422021109,1778477449000,-647.0,0.0002376,2]
[422021116,1778477449000,-507.0,0.00024397,2]
[422021111,1778477449000,-167.0,0.00024,2]
[422021118,1778477449000,-314.0,0.000244,2]
[422021107,1778477449000,-550.0,0.0002376,2]
[422021115,1778477449000,-775.9,0.00024324,2]
[422021110,1778477449000,-1054.46,0.00024,7]
[422021117,1778477449000,-1000.0,0.000244,2]
[422021113,1778477449000,-267.0,0.00024,2]
[422021114,1778477449000,-440.06362982,0.00024273,21]
[422021122,1778477449000,-2000.0,0.00024555,2]
[422021121,1778477449000,-2000.0,0.00024555,2]
[422021123,1778477449000,-2000.0,0.00024555,2]
[422021119,1778477449000,-642.0,0.000244,2]
[422021054,1778477449000,-158.783763,0.00021918,2]
[422021099,1778477449000,-624.0,0.00023375,2]
[422021100,1778477449000,-1353.0,0.00023375,2]
[422021120,1778477449000,-2000.0,0.00024555,2]
[422021087,1778477449000,-2162.76,0.00022466,2]
[422021093,1778477449000,-165.30409949,0.00023,2]
[422021057,1778477449000,-500.0,0.00021999,2]
[422021060,1778477449000,-106143.13523614,0.00022,4]
[422021059,1778477449000,-1161.3,0.00021999,2]
[422021061,1778477449000,-167.0,0.00022,2]
[422021064,1778477449000,-267.0,0.00022,2]
[422021056,1778477449000,-158.12148618,0.00021964,2]
[422021068,1778477449000,-2000.0,0.00022298,2]
[422021069,1778477449000,-2000.0,0.00022298,2]
[422021070,1778477449000,-2000.0,0.00022298,2]
[422021073,1778477449000,-2000.0,0.00022298,2]
[422021072,1778477449000,-2000.0,0.00022298,2]
[422021071,1778477449000,-2000.0,0.00022298,2]
[422021074,1778477449000,-2000.0,0.00022298,2]
[422021058,1778477449000,-860.1,0.00021999,2]
[422021076,1778477449000,-2000.0,0.00022298,2]
[422021078,1778477449000,-2000.0,0.00022298,2]
[422021091,1778477449000,-167.0,0.00023,2]
[422021090,1778477449000,-6695.0,0.00022757,2]
[422021089,1778477449000,-1476.14135509,0.00022736,2]
[422021084,1778477449000,-2000.0,0.00022298,2]
[422021088,1778477449000,-765.75,0.00022562,2]
[422021086,1778477449000,-775.9,0.00022353,2]
[422021081,1778477449000,-2000.0,0.00022298,2]
[422021077,1778477449000,-2000.0,0.00022298,2]
[422021083,1778477449000,-2000.0,0.00022298,2]
[422021079,1778477449000,-2000.0,0.00022298,2]
[422021085,1778477449000,-2000.0,0.00022298,2]
[422021075,1778477449000,-2000.0,0.00022298,2]
[422021080,1778477449000,-2000.0,0.00022298,2]
[422021166,1778477450000,-1395.36,0.00026009,7]
[422021155,1778477450000,-186.78,0.00025927,2]
[422021159,1778477450000,-186.78,0.00025961,7]
[422021154,1778477450000,-1161.33847218,0.00025808,2]
[422021158,1778477450000,-174.01,0.0002593,2]
[422021160,1778477450000,-187.07,0.00025963,7]
[422021157,1778477450000,-197.58,0.0002593,2]
[422021163,1778477450000,-186.78,0.00025995,30]
[422021162,1778477450000,-1395.36,0.00025978,2]
[422021164,1778477450000,-187.07,0.00025997,30]
[422021153,1778477450000,-1161.3,0.00025808,2]
[422021161,1778477450000,-1345.9,0.00025977,2]
[422021167,1778477450000,-500.0,0.00026013,2]
[422021168,1778477450000,-186.78,0.00026029,2]
[422021165,1778477450000,-1345.9,0.00026008,7]
[422021169,1778477450000,-187.07,0.00026031,2]
[422021174,1778477450000,-1345.9,0.00026071,2]
[422021171,1778477450000,-1395.36,0.0002604,2]
[422021172,1778477450000,-186.78,0.00026063,7]
[422021170,1778477450000,-1345.9,0.00026039,2]
[422021175,1778477450000,-1395.36,0.00026072,2]
[422021177,1778477450000,-187.07,0.00026099,30]
[422021156,1778477450000,-187.07,0.00025929,2]
[422021178,1778477450000,-1345.9,0.00026102,7]
[422021173,1778477450000,-187.07,0.00026065,7]
[422021152,1778477450000,-1161.3,0.00025808,2]
[422021132,1778477450000,-550.0,0.00024658,2]
[422021149,1778477450000,-502.27200693,0.00025808,2]
[422021179,1778477450000,-1395.36,0.00026103,7]
[422021129,1778477450000,-373915.88541396,0.00024634,2]
[422021130,1778477450000,-226.0,0.00024658,2]
[422021124,1778477450000,-2000.0,0.00024555,2]
[422021125,1778477450000,-2000.0,0.00024555,2]
[422021128,1778477450000,-2000.0,0.00024555,2]
[422021127,1778477450000,-2000.0,0.00024555,2]
[422021126,1778477450000,-2000.0,0.00024555,2]
[422021131,1778477450000,-631.0,0.00024658,2]
[422021133,1778477450000,-150.0,0.00024658,2]
[422021134,1778477450000,-393.0,0.00024658,2]
[422021142,1778477450000,-638.46680838,0.00025327,2]
[422021135,1778477450000,-500.0,0.00024767,2]
[422021136,1778477450000,-56001.01986406,0.00025,7]
[422021138,1778477450000,-182.88622569,0.00025,2]
[422021141,1778477450000,-250.0,0.00025205,2]
[422021140,1778477450000,-286.33427008,0.00025,2]
[422021139,1778477450000,-499.4007416,0.00025,2]
[422021145,1778477450000,-507.0,0.00025661,3]
[422021144,1778477450000,-295.3,0.00025397,2]
[422021146,1778477450000,-350.0,0.00025753,2]
[422021143,1778477450000,-575.99915035,0.0002534,2]
[422021148,1778477450000,-500.0,0.00025808,2]
[422021151,1778477450000,-1161.3,0.00025808,2]
[422021147,1778477450000,-206.56,0.00025756,2]
[422021150,1778477450000,-1161.3,0.00025808,2]
[422021182,1778477450000,-1345.9,0.00026134,7]
[422021137,1778477450000,-214.82098671,0.00025,7]
[422021183,1778477450000,-1395.36,0.00026135,7]
[422021207,1778477450000,-1345.9,0.00026323,7]
[422021210,1778477450000,-187.07,0.00026337,2]
[422021208,1778477450000,-1395.36,0.00026323,7]
[422021209,1778477450000,-186.78,0.00026336,2]
[422021216,1778477450000,-2000.0,0.00026352,2]
[422021226,1778477450000,-624.0,0.00026375,2]
[422021227,1778477450000,-1353.0,0.00026375,2]